bitfinex/quotes_SOLUSD_20241205
["timestamp","ask_amount","ask_price","bid_price","bid_amount"]
[1733393831057,6.623,237.33,237.25,0.8406223]
[1733393831231,6.623,237.33,237.24,91.0]
[1733393831556,7.14778926,237.33,237.24,91.0]
[1733393831724,0.12549,237.32,237.17,91.0]
[1733393831933,23.902374,237.28,237.08,97.3807]
[1733393832258,2.13494502,237.29,237.09,0.84097106]
[1733393833143,1.6102,237.29,237.12,0.12549]
[1733393833345,1.6102,237.29,237.12,0.96621471]
[1733393833733,1.6102,237.29,237.17,23.776884]
[1733393833947,1.6102,237.29,237.21,20.0]
[1733393834257,1.6102,237.29,237.22,0.84072173]
[1733393842143,6.623,237.33,237.26,20.0]
[1733393842367,1.5049,237.34,237.26,20.0]
[1733393842753,1.5049,237.34,237.25,23.902374]
[1733393842955,1.5049,237.34,237.28,20.0]
[1733393847561,6.4903,237.38,237.28,20.0]
[1733393847787,7.01506714,237.38,237.28,20.0]
[1733393848570,7.01506714,237.38,237.29,20.0]
[1733393849061,7.01506714,237.38,237.25,20.0]
[1733393849271,6.4903,237.38,237.29,20.0]
[1733393850369,0.52478926,237.37,237.25,20.0]
[1733393852062,6.4903,237.38,237.26,0.84056485]
[1733393854146,0.52478926,237.37,237.26,0.84056485]
[1733393854346,6.4903,237.38,237.26,0.84056485]
[1733393858180,0.52478926,237.4,237.26,0.84056485]
[1733393858364,2.08567875,237.45,237.3,111.0]
[1733393859087,0.12549,237.44,237.3,111.0]
[1733393859759,23.902374,237.44,237.3,111.0]
[1733393859960,0.12549,237.42,237.3,111.0]
[1733393860561,8.1663,237.41,237.3,111.0]
[1733393860760,8.1663,237.41,237.26,20.0]
[1733393860761,0.52478926,237.4,237.26,20.0]
[1733393861860,0.52478926,237.4,237.26,111.0]
[1733393861861,0.12549,237.39,237.26,111.0]
[1733393862083,23.902374,237.39,237.26,111.0]
[1733393862386,0.52478926,237.38,237.26,111.0]
[1733393864182,7.97699,237.37,237.26,111.0]
[1733393864501,0.12549,237.35,237.2,23.776884]
[1733393864793,0.12549,237.35,237.21,0.84070342]
[1733393865689,0.12549,237.35,237.2,0.84068998]
[1733393865861,0.12549,237.35,237.22,20.0]
[1733393866062,0.07106065,237.35,237.23,0.84066604]
[1733393866391,7.8515,237.37,237.23,20.84066604]
[1733393866574,0.52478926,237.36,237.23,20.84066604]
[1733393869689,0.52478926,237.36,237.23,111.84066604]
[1733393869881,0.52478926,237.36,237.23,111.0]
[1733393871293,0.12549,237.33,237.23,20.0]
[1733393871590,6.5272,237.3,237.16,91.0]
[1733393871794,0.52478926,237.29,237.17,0.84087115]
[1733393872170,0.52478926,237.29,237.17,91.84087115]
[1733393872379,24.30167326,237.29,237.17,91.0]
[1733393872582,24.30167326,237.29,237.18,0.84090112]
[1733393873910,24.30167326,237.29,237.2,20.0]
[1733393874775,24.30167326,237.29,237.18,0.84090112]
[1733393874776,7.9761,237.24,237.1,91.0]
[1733393875002,24.30167326,237.23,237.1,91.0]
[1733393876075,24.30167326,237.23,237.11,0.84117775]
[1733393876276,0.52478926,237.23,237.11,0.84117775]
[1733393876708,0.12549,237.22,237.11,0.84117775]
[1733393877821,0.52478926,237.23,237.11,0.84117775]
[1733393877971,0.52478926,237.23,237.1,90.25841375]
[1733393878308,1.17690445,237.23,237.11,0.73686188]
[1733393880313,1.05141445,237.23,237.11,0.73686188]
[1733393881384,1.05141445,237.23,237.13,20.0]
[1733393881593,1.05141445,237.23,237.14,20.0]
[1733393883684,23.776884,237.22,237.14,20.0]
[1733393883883,1.6409,237.2,237.03,95.88641375]
[1733393884097,1.05152743,237.19,237.06,20.0]
[1733393884296,1.05152743,237.19,237.07,0.7370924]
[1733393886393,6.6298,237.18,237.07,0.7370924]
[1733393886607,1.05161115,237.17,237.07,0.7370924]
[1733393886824,0.12549,237.16,237.07,0.7370924]
[1733393887110,0.12549,237.16,237.01,0.7374648]
[1733393887711,1.5686,237.15,237.03,109.55841375]
[1733393887912,1.05172579,237.14,237.04,0.73748457]
[1733393888419,1.5686,237.15,237.04,0.73748457]
[1733393888796,1.0516943,237.14,237.04,0.73748457]
[1733393890716,6.3022,237.13,237.04,0.73748457]
[1733393890899,1.05179776,237.12,236.96,90.29604226]
[1733393891093,1.05179776,237.12,236.96,89.55841375]
[1733393892115,1.05179776,237.12,236.99,20.0]
[1733393892323,1.05179776,237.12,237.02,20.0]
[1733393895435,1.5264,237.1,237.02,20.0]
[1733393895727,1.05198904,237.09,237.02,20.0]
[1733393896625,1.05198904,237.09,236.98,20.0]
[1733393896931,1.05198904,237.09,236.99,0.73795988]
[1733393897099,6.4647,237.08,236.96,0.73795988]
[1733393897301,1.05207814,237.07,236.96,0.73795988]
[1733393897731,6.40390997,237.08,236.96,0.73795988]
[1733393897928,0.31388887,237.07,236.96,0.73795988]
[1733393898308,0.31388887,237.07,236.98,20.0]
[1733393898540,0.31388887,237.07,236.98,20.84162343]
[1733393899629,0.31388887,237.07,236.98,20.0]
[1733393900134,1.57,237.06,236.98,20.0]
[1733393900303,0.31388887,237.05,236.98,20.0]
[1733393901111,0.12549,237.04,236.95,0.4860927]
[1733393901316,0.25098,237.04,236.95,0.4860927]
[1733393901828,0.12549,237.02,236.95,0.4860927]
[1733393902133,1.57,237.01,236.95,0.4860927]
[1733393902334,0.31388887,237.0,236.95,0.4860927]
[1733393903318,1.57,237.01,236.95,0.4860927]
[1733393904206,1.57,237.01,236.96,20.0]
[1733393904737,1.57,237.01,236.95,1.32780845]
[1733393905115,1.57,237.01,236.95,0.4860927]
[1733393905820,0.31388887,237.0,236.95,0.4860927]
[1733393906051,1.57,237.01,236.95,0.4860927]
[1733393906235,0.31388887,237.0,236.95,0.4860927]
[1733393906622,1.57,237.01,236.95,0.4860927]
[1733393906837,0.31388887,237.0,236.95,0.4860927]
[1733393907220,1.57,237.01,236.95,0.4860927]
[1733393907752,0.31388887,237.0,236.95,0.4860927]
[1733393908539,0.25098,236.99,236.95,0.4860927]
[1733393908722,24.027864,236.99,236.95,0.4860927]
[1733393908922,0.12549,236.97,236.95,0.4860927]
[1733393909630,20.0,237.0,236.95,0.4860927]
[1733393909856,0.31388887,237.0,236.95,0.4860927]
[1733393911060,1.57,237.01,236.95,0.4860927]
[1733393911848,6.5278,237.03,236.96,0.84173576]
[1733393912030,6.5278,237.03,236.96,20.84173576]
[1733393912235,6.5278,237.03,236.96,110.40014951]
[1733393912447,6.5278,237.03,236.96,109.55841375]
[1733393912972,6.5278,237.03,236.97,20.0]
[1733393913587,6.5278,237.03,236.97,20.84162568]
[1733393913960,1.5204,237.07,236.98,4.212]
[1733393914259,1.83428887,237.07,236.98,4.212]
[1733393915637,1.83428887,237.07,236.97,4.212]
[1733393915942,1.5204,237.07,236.97,5.05376792]
[1733393916141,1.6367,237.13,237.01,93.77041375]
[1733393916331,7.8858,237.25,237.04,109.55841375]
[1733393916536,0.31388887,237.24,237.05,90.39967244]
[1733393916870,0.12549,237.23,237.08,20.0]
[1733393917160,0.12549,237.21,237.08,20.0]
[1733393917745,0.12549,237.19,237.08,20.0]
[1733393917944,24.027864,237.17,237.05,89.55841375]
[1733393918156,0.12549,237.15,237.0,91.07751375]
[1733393918459,0.12549,237.15,237.03,20.0]
[1733393920152,0.31388887,237.16,237.04,0.84146362]
[1733393920344,0.31388887,237.17,237.04,0.84146362]
[1733393922064,0.31388887,237.17,237.04,90.39987737]
[1733393922254,0.31388887,237.17,237.07,20.0]
[1733393923840,7.8858,237.18,237.08,0.84129783]
[1733393925376,8.1662,237.24,237.12,20.0]
[1733393925568,0.31388887,237.23,237.13,0.84105682]
[1733393925953,0.31388887,237.23,237.12,20.0]
[1733393926156,0.31388887,237.23,237.13,20.0]
[1733393926876,0.12549,237.22,237.13,20.0]
[1733393927044,7.50259,237.22,237.13,20.0]
[1733393927245,0.31388887,237.21,237.13,20.0]
[1733393928070,0.12549,237.2,237.13,20.0]
[1733393928604,7.378,237.19,237.04,89.55841375]
[1733393928770,0.31388887,237.18,237.07,20.0]
[1733393928959,0.12549,237.17,237.05,0.84133896]
[1733393929271,1.6097,237.16,237.04,0.84138629]
[1733393929477,6.92278887,237.15,237.04,0.84138629]
[1733393929947,6.92278887,237.15,237.02,0.84140494]
[1733393930659,6.92278887,237.15,237.0,89.55841375]
[1733393930660,24.027864,237.14,237.0,89.55841375]
[1733393930859,0.12549,237.12,237.0,89.55841375]
[1733393932053,0.25098,237.12,237.03,20.0]
[1733393933183,0.12549,237.08,236.95,0.4860927]
[1733393933478,23.902374,237.06,236.95,0.4860927]
[1733393933668,0.31388887,237.05,236.95,0.4860927]
[1733393934274,0.25098,237.04,236.95,0.4860927]
[1733393934651,1.5021,237.07,236.98,20.0]
[1733393934851,1.5021,237.07,236.99,0.84158572]
[1733393936186,6.4564,237.09,236.99,0.84158572]
[1733393936490,6.4564,237.09,237.02,20.0]
[1733393936783,6.4564,237.09,237.02,20.84149906]
[1733393937081,6.4564,237.09,237.02,0.84149906]
[1733393937286,6.4564,237.09,237.03,20.0]
[1733393942784,6.4564,237.09,237.01,0.84144063]
[1733393944198,6.4564,237.09,237.03,20.0]
[1733393944562,6.4564,237.09,237.04,0.84142918]
[1733393944992,6.4564,237.09,237.03,20.0]
[1733393945292,1.5397,237.12,237.04,0.84149839]
[1733393946490,0.43937887,237.11,236.95,90.04450645]
[1733393946784,6.42749,237.09,236.95,90.04450645]
[1733393946974,0.31388887,237.08,236.96,0.84167538]
[1733393950797,0.31388887,237.08,236.98,20.0]
[1733393951276,6.302,237.09,236.99,0.84159584]
[1733393951475,0.31388887,237.1,236.99,0.84159584]
[1733393951791,1.5397,237.12,237.03,20.0]
[1733393951994,1.5397,237.12,237.04,0.84139208]
[1733393952869,1.5397,237.12,237.05,113.46078775]
[1733393953075,1.5397,237.12,237.06,0.84129196]
[1733393953872,1.5397,237.12,237.05,89.55841375]
[1733393956120,0.31388887,237.11,237.05,89.55841375]
[1733393956791,0.31388887,237.11,236.97,0.12549]
[1733393957000,0.31388887,237.11,236.97,0.84155208]
[1733393957302,1.5397,237.12,236.98,0.12549]
[1733393957511,1.5397,237.12,237.03,20.0]
[1733393957816,1.5397,237.12,237.04,0.84139052]
[1733393958994,1.6443,237.18,237.06,23.776884]
[1733393959192,1.6443,237.18,237.09,20.0]
[1733393959388,1.6443,237.18,237.09,20.84118919]
[1733393959589,1.6443,237.18,237.09,110.39960294]
[1733393959905,1.6443,237.18,237.09,109.55841375]
[1733393961185,1.6443,237.18,237.1,0.84117195]
[1733393966905,1.6443,237.18,237.1,90.3995857]
[1733393967103,1.6443,237.18,237.1,89.55841375]
[1733393967303,1.6443,237.18,237.11,0.84113587]
[1733393967707,1.6443,237.18,237.1,89.55841375]
[1733393968623,1.6443,237.18,237.11,0.84114708]
[1733393971927,1.6443,237.18,237.1,0.84115746]
[1733393977328,0.31388887,237.17,237.09,89.55841375]
[1733393977535,0.31388887,237.17,237.04,23.776884]
[1733393977735,0.31388887,237.17,237.05,0.84128292]
[1733393978655,7.69248887,237.17,237.04,0.84128634]
[1733393980135,1.6443,237.18,237.08,20.0]
[1733393980311,1.6443,237.18,237.09,24.61802523]
[1733393983743,1.6443,237.18,237.09,114.17643898]
[1733393984040,1.6443,237.18,237.09,113.33529775]
[1733393985240,1.6443,237.18,237.1,0.84114134]
[1733393993163,1.6443,237.18,237.1,90.39955509]
[1733393993358,3.24,237.42,237.13,23.776884]
[1733393993359,1.6072,237.23,237.13,23.776884]
[1733393993565,1.6072,237.23,237.14,0.96640226]
[1733393993876,1.6072,237.23,237.15,23.776884]
[1733393994048,1.6072,237.23,237.16,0.84088483]
[1733393994541,6.5708,237.27,237.2,20.0]
[1733393994743,6.5708,237.27,237.21,24.61757586]
[1733393994941,6.5708,237.27,237.21,0.84069186]
[1733393995567,6.5708,237.27,237.18,23.776884]
[1733393995771,6.5708,237.27,237.19,0.84085102]
[1733393997158,1.611,237.29,237.2,114.076884]
[1733393997359,1.611,237.29,237.22,23.776884]
[1733393998180,1.611,237.29,237.21,0.84070021]
[1733393999852,1.611,237.29,237.2,90.3]
[1733394000555,1.611,237.29,237.16,20.0]
[1733394000873,1.611,237.29,237.17,20.84089112]
[1733394001077,0.43937887,237.28,237.17,0.84089112]
[1733394001686,0.43937887,237.28,237.15,0.84093322]
[1733394001990,6.308,237.27,237.15,0.84093322]
[1733394002177,0.31388887,237.26,237.15,0.84093322]
[1733394003655,6.308,237.27,237.15,0.84093322]
[1733394003860,6.308,237.27,237.17,20.0]
[1733394004052,6.308,237.27,237.18,0.84086911]
[1733394006958,0.31388887,237.26,237.15,0.84092199]
[1733394007868,6.308,237.27,237.15,0.84092199]
[1733394008386,6.308,237.27,237.16,23.776884]
[1733394008573,6.308,237.27,237.17,0.84090878]
[1733394008884,0.31388887,237.26,237.17,0.84090878]
[1733394009259,0.31388887,237.26,237.15,0.84099013]
[1733394009677,0.12549,237.25,237.15,0.84099013]
[1733394010185,0.12549,237.23,237.13,20.0]
[1733394010362,0.43937887,237.23,237.13,20.0]
[1733394010557,0.43937887,237.23,237.14,0.84110807]
[1733394010760,1.5526,237.24,237.14,0.84110807]
[1733394011881,1.5526,237.24,237.15,23.776884]
[1733394012086,1.5526,237.24,237.16,0.84084525]
[1733394014375,1.5526,237.24,237.15,0.84087535]
[1733394014897,1.5526,237.24,237.14,90.3]
[1733394015080,0.43937887,237.23,237.06,91.891]
[1733394015273,0.43937887,237.23,237.07,0.8411069]
[1733394016397,0.43937887,237.23,237.09,20.0]
[1733394016563,0.43937887,237.23,237.1,0.84108187]
[1733394017490,1.5526,237.24,237.11,114.076884]
[1733394017695,1.5526,237.24,237.13,23.776884]
[1733394017989,1.5526,237.24,237.14,0.84095236]
[1733394018500,1.5526,237.24,237.14,20.84095236]
[1733394020393,1.5526,237.24,237.15,23.776884]
[1733394020696,1.5526,237.24,237.16,0.84085731]
[1733394020865,1.5526,237.24,237.18,20.0]
[1733394021066,1.5526,237.24,237.19,0.84085597]
[1733394021297,1.5526,237.24,237.16,0.84085634]
[1733394021485,0.31388887,237.23,237.08,90.3]
[1733394021669,0.31388887,237.23,237.09,0.84110308]
[1733394022993,0.31388887,237.23,237.11,20.0]
[1733394023192,21.86647563,237.24,237.12,0.84105907]
[1733394025168,6.6456,237.22,237.12,0.84105907]
[1733394025370,0.31388887,237.21,237.12,0.84105907]
[1733394027297,0.31388887,237.21,237.09,0.8411409]
[1733394030603,1.5209,237.2,237.09,0.8411409]
[1733394030818,0.31388887,237.19,237.09,0.8411409]
[1733394031107,0.31388887,237.19,237.08,0.84124877]
[1733394034304,1.5209,237.2,237.09,23.776884]
[1733394034604,1.5209,237.2,237.11,23.776884]
[1733394034779,1.5209,237.2,237.12,0.84105553]
[1733394035897,1.5209,237.2,237.14,20.0]
[1733394036210,1.5209,237.2,237.15,0.8410012]
[1733394042899,1.5209,237.2,237.12,90.3]
[1733394043093,0.31388887,237.19,237.12,90.3]
[1733394043795,1.5209,237.2,237.12,90.3]
[1733394044002,1.5209,237.2,237.04,90.42549]
[1733394044309,1.5209,237.2,237.08,23.776884]
[1733394044493,1.5209,237.2,237.11,20.0]
[1733394047805,1.5209,237.2,237.09,0.84117279]
[1733394047979,0.31388887,237.19,237.09,0.84117279]
[1733394050190,0.31388887,237.19,237.07,0.84122873]
[1733394056010,20.12549,237.18,237.07,0.84122873]
[1733394056248,6.2725,237.16,237.04,91.14132985]
[1733394056397,0.31388887,237.15,237.04,90.3]
[1733394057696,0.31388887,237.15,237.05,0.84133357]
[1733394058799,6.58638887,237.16,237.05,0.84133357]
[1733394059394,1.64589,237.15,237.05,0.84133357]
[1733394059598,0.31388887,237.14,237.02,20.0]
[1733394060201,0.31388887,237.14,237.03,0.84146074]
[1733394060931,0.12549,237.13,237.0,0.84146928]
[1733394061239,7.8756,237.1,236.98,0.84147761]
[1733394061431,20.0,237.07,236.95,0.4860927]
[1733394061731,7.8756,237.1,236.96,0.84159624]
[1733394062526,0.31388887,237.09,236.96,0.84159624]
[1733394062704,20.0,237.07,236.96,0.84159624]
[1733394062902,0.31388887,237.06,236.96,0.84159624]
[1733394065929,6.3005,237.04,236.95,0.4860927]
[1733394066265,0.31388887,237.03,236.95,0.4860927]
[1733394075837,0.12549,237.02,236.95,0.4860927]
[1733394076152,7.69708887,237.03,236.95,0.4860927]
[1733394077355,0.12549,237.02,236.95,0.4860927]
[1733394080141,23.902374,237.02,236.95,0.4860927]
[1733394080346,0.12549,237.0,236.95,0.4860927]
[1733394082342,1.566,236.99,236.95,0.4860927]
[1733394082764,0.31388887,236.98,236.95,0.4860927]
[1733394084037,6.0541,236.97,236.95,0.4860927]
[1733394084245,0.31388887,236.96,236.95,0.4860927]
[1733394084556,6.0541,236.97,236.95,0.4860927]
[1733394086751,1.566,236.99,236.95,0.4860927]
[1733394090675,0.31388887,236.98,236.95,0.4860927]
[1733394095845,1.566,236.99,236.95,0.4860927]
[1733394096065,0.31388887,237.02,236.95,0.4860927]
[1733394096255,0.12549,237.01,236.95,0.4860927]
[1733394097848,6.81708887,237.03,236.95,0.4860927]
[1733394098350,0.31388887,237.03,236.95,0.4860927]
[1733394098753,0.31388887,237.04,236.95,0.4860927]
[1733394098967,0.31388887,237.04,236.96,4.212]
[1733394100073,1.5676,237.05,236.96,4.212]
[1733394100259,0.31388887,237.07,236.98,4.212]
[1733394100463,0.31388887,237.07,236.97,0.84168548]
[1733394100464,6.87078887,237.08,237.0,4.212]
[1733394100773,7.69518887,237.09,237.0,4.212]
[1733394101071,1.82208887,237.11,237.0,4.212]
[1733394101283,1.82208887,237.11,237.02,4.212]
[1733394101455,1.5082,237.11,237.02,4.212]
[1733394101652,7.3788,237.17,237.06,4.212]
[1733394101971,1.5082,237.18,237.07,0.84134147]
[1733394102163,0.31388887,237.17,237.06,4.212]
[1733394102757,0.31388887,237.17,237.04,5.05332052]
[1733394104975,0.31388887,237.17,237.08,4.212]
[1733394105478,1.82208887,237.18,237.08,4.212]
[1733394105682,20.0,237.16,237.04,5.05326699]
[1733394106777,20.0,237.14,237.04,0.84126699]
[1733394106980,0.43937887,237.13,237.01,0.84131486]
[1733394111966,0.12549,237.13,237.01,0.84131486]
[1733394112166,0.43937887,237.13,237.01,0.84131486]
[1733394117968,1.82208887,237.18,237.04,24.212]
[1733394118168,1.82208887,237.18,237.05,0.84131783]
[1733394118377,1.5082,237.18,237.05,0.84131783]
[1733394118555,1.5082,237.18,237.08,20.0]
[1733394118758,1.5082,237.18,237.09,0.84119579]
[1733394118982,6.3495,237.19,237.09,0.84119579]
[1733394119184,0.31388887,237.22,237.09,0.84119579]
[1733394120557,0.31388887,237.22,237.09,20.84119579]
[1733394121484,0.31388887,237.22,237.1,4.212]
[1733394121875,0.12549,237.21,237.11,0.84115647]
[1733394124451,0.12549,237.21,237.04,6.3279]
[1733394124452,0.12549,237.18,237.07,5.05316879]
[1733394124652,0.12549,237.16,237.07,4.212]
[1733394124891,0.43937887,237.16,237.07,4.212]
[1733394125279,1.6313,237.14,237.07,4.212]
[1733394125455,0.12549,237.12,237.08,4.212]
[1733394126472,0.12549,237.12,237.0,5.05347448]
[1733394129286,0.12549,237.12,237.0,0.84147448]
[1733394129484,0.12549,237.12,237.0,20.84147448]
[1733394130776,0.31388887,237.13,237.02,20.0]
[1733394130963,0.31388887,237.13,237.03,0.84144734]
[1733394131367,1.6313,237.14,237.03,0.84144734]
[1733394134895,1.6313,237.14,237.03,20.84144734]
[1733394138574,1.5096,237.19,237.07,20.0]
[1733394138903,1.5096,237.19,237.08,0.84122391]
[1733394139101,0.31388887,237.18,237.08,0.84122391]
[1733394139782,0.31388887,237.18,237.08,5.05322391]
[1733394140195,1.5096,237.19,237.08,5.05322391]
[1733394141779,0.12549,237.18,237.08,0.84122391]
[1733394142104,0.43937887,237.18,237.02,95.35331142]
[1733394142298,0.43937887,237.18,237.04,4.212]
[1733394142497,0.43937887,237.18,237.05,0.8413093]
[1733394143300,0.43937887,237.18,237.08,4.212]
[1733394147294,23.902374,237.16,237.04,0.8413096]
[1733394147603,1.5077,237.14,237.0,0.8414718]
[1733394147806,0.31388887,237.13,237.0,0.8414718]
[1733394148383,0.12549,237.12,236.99,0.84150904]
[1733394148786,0.12549,237.12,237.02,20.0]
[1733394149306,0.12549,237.12,236.96,5.05354058]
[1733394150492,0.12549,237.1,237.0,4.212]
[1733394150684,0.43937887,237.1,237.0,4.212]
[1733394151492,0.43937887,237.1,236.99,4.212]
[1733394152506,8.9675,237.08,236.96,4.212]
[1733394152821,0.31388887,237.07,236.96,4.212]
[1733394154208,1.89998887,237.08,236.99,4.212]
[1733394154407,1.89998887,237.08,236.99,5.05358936]
[1733394154715,1.5861,237.08,236.99,5.05358936]
[1733394161348,1.5861,237.08,237.03,4.212]
[1733394162197,1.5861,237.08,237.0,5.05347245]
[1733394165201,1.5281,237.13,237.04,4.212]
[1733394165404,1.5281,237.13,237.05,0.84127906]
[1733394165715,1.5281,237.13,237.08,4.212]
[1733394166933,1.5281,237.13,237.09,4.212]
[1733394167901,1.5281,237.13,237.07,0.84125994]
[1733394168096,0.12549,237.18,237.08,4.212]
[1733394168303,0.43937887,237.18,237.09,0.84123447]
[1733394168713,1.91588887,237.19,237.09,0.84123447]
[1733394171723,1.602,237.19,237.08,24.212]
[1733394171930,1.602,237.19,237.09,0.84117746]
[1733394172423,1.602,237.19,237.12,4.212]
[1733394173209,1.602,237.19,237.09,5.05317746]
[1733394174018,0.31388887,237.18,237.09,4.212]
[1733394174327,0.31388887,237.18,237.08,4.212]
[1733394176112,1.91588887,237.19,237.08,4.212]
[1733394176636,1.91588887,237.19,237.09,0.84120383]
[1733394177227,1.602,237.19,237.09,0.84120383]
[1733394183535,0.31388887,237.18,237.06,20.0]
[1733394183738,0.31388887,237.18,237.06,25.05326665]
[1733394186249,0.12549,237.17,237.06,25.05326665]
[1733394188325,0.12549,237.17,237.04,4.212]
[1733394188628,0.12549,237.17,237.08,4.212]
[1733394192755,0.31388887,237.18,237.08,4.212]
[1733394192937,0.31388887,237.18,237.1,4.212]
[1733394194156,0.31388887,237.18,237.08,0.8413099]
[1733394194957,7.3786,237.17,237.08,4.212]
[1733394195255,0.31388887,237.16,237.08,4.212]
[1733394196545,1.602,237.19,237.09,0.84130765]
[1733394196737,1.91588887,237.19,237.09,0.84130765]
[1733394200053,1.91588887,237.19,237.07,5.05319979]
[1733394202734,9.29408887,237.19,237.07,5.05319979]
[1733394202946,0.12549,237.18,237.07,5.05319979]
[1733394203148,0.31388887,237.17,237.07,4.212]
[1733394204061,0.12549,237.16,237.04,0.84123348]
[1733394204229,0.43937887,237.16,237.04,0.84123348]
[1733394205062,0.43937887,237.16,237.04,5.05123348]
[1733394207466,28.0277,237.15,237.0,5.05133958]
[1733394207766,24.09077287,237.14,237.0,5.05133958]
[1733394208552,24.09077287,237.14,237.0,0.84133958]
[1733394208757,7.3799,237.13,237.01,0.84148427]
[1733394208939,0.31388887,237.12,237.01,4.21]
[1733394209261,0.31388887,237.12,237.01,5.0514906]
[1733394209454,0.31388887,237.14,237.01,5.0514906]
[1733394210736,0.31388887,237.14,237.03,4.21]
[1733394211072,0.31388887,237.14,237.04,0.84137457]
[1733394213169,8.0277,237.15,237.05,43.776884]
[1733394213344,8.0277,237.15,237.06,5.05121113]
[1733394214044,8.0277,237.15,237.08,4.21]
[1733394214240,8.0277,237.15,237.09,0.84118608]
[1733394215251,8.0277,237.15,237.07,23.776884]
[1733394215454,8.0277,237.15,237.08,5.05119725]
[1733394216054,1.82038887,237.2,237.08,5.05119725]
[1733394219051,1.82038887,237.2,237.08,0.84119725]
[1733394219773,1.70656848,237.29,237.11,0.12549]
[1733394219975,6.3237,237.54,237.34,0.12549]
[1733394220268,6.3237,237.54,237.42,23.776884]
[1733394220475,6.3237,237.54,237.41,20.0]
[1733394220643,6.3237,237.54,237.36,23.776884]
[1733394220847,13.6909,237.54,237.36,23.776884]
[1733394221670,0.12549,237.53,237.36,23.776884]
[1733394221871,13.6909,237.54,237.37,0.84015872]
[1733394222062,23.902374,237.53,237.37,0.84015872]
[1733394222269,20.0,237.5,237.35,20.0]
[1733394223280,0.12549,237.49,237.35,20.0]
[1733394223452,0.12549,237.49,237.36,0.84021354]
[1733394223651,0.12549,237.49,237.34,23.776884]
[1733394223882,0.12549,237.49,237.35,0.84022066]
[1733394224855,0.25098,237.49,237.34,23.776884]
[1733394225062,0.25098,237.49,237.33,23.776884]
[1733394225269,0.25098,237.49,237.34,0.84030884]
[1733394229086,0.25098,237.49,237.34,5.05030884]
[1733394230383,1.5141,237.48,237.34,5.05030884]
[1733394240567,4.85622305,238.0,237.5,4.21]
[1733394240767,0.4860927,238.01,237.85,0.12549]
[1733394240990,217.3,238.36,237.91,4.21]
[1733394241192,1.137,238.23,237.96,4.21]
[1733394241376,1.137,238.23,238.0,4.21]
[1733394241562,1.137,238.23,238.05,4.21]
[1733394241765,1.137,238.23,238.09,23.776884]
[1733394241992,1.137,238.23,238.1,0.8375249]
[1733394242466,1.137,238.23,237.95,24.027864]
[1733394242669,1.137,238.23,238.01,24.027864]
[1733394242863,1.137,238.23,238.09,4.33549]
[1733394243091,1.137,238.23,238.15,4.21]
[1733394243294,0.4860927,238.24,238.18,4.21]
[1733394243591,0.4860927,238.24,238.19,0.96271836]
[1733394243792,0.4860927,238.24,238.2,4.21]
[1733394244898,0.4860927,238.24,238.15,4.21]
[1733394245079,0.4860927,238.24,238.16,0.83728664]
[1733394245273,0.4860927,238.24,238.2,4.21]
[1733394245674,0.4860927,238.24,238.21,0.83722184]
[1733394246589,0.4860927,238.24,238.1,4.33549]
[1733394246892,0.4860927,238.24,238.15,0.12549]
[1733394247079,0.4860927,238.24,238.17,0.12549]
[1733394247279,0.4860927,238.24,238.19,0.12549]
[1733394247596,0.4860927,238.24,238.2,4.21]
[1733394247785,0.4860927,238.24,238.21,0.83721625]
[1733394251176,0.23329106,238.24,238.21,0.83721625]
[1733394251482,0.23329106,238.24,238.23,4.33549]
[1733394251677,0.23329106,238.24,238.23,5.17256398]
[1733394252089,0.23329106,238.24,238.23,28.94944798]
[1733394252402,1.65477635,238.43,238.23,28.94944798]
[1733394252403,20.0166434,238.82,238.29,0.12549]
[1733394252574,20.0166434,238.82,238.28,18.0227]
[1733394252575,0.96072727,238.8,238.31,28.112374]
[1733394252895,0.96072727,238.8,238.39,4.21]
[1733394253194,0.96072727,238.8,238.44,4.21]